fUSD/lending_fUSD_20260527
["ID","MTS","AMOUNT","RATE_DAILY","PERIOD"]
[423156846,1779897041000,-381.89,0.00027755,30]
[423156849,1779897041000,-453.58,0.00027793,30]
[423156845,1779897041000,-415.24,0.000276,7]
[423156843,1779897041000,-159.48,0.00027552,30]
[423156852,1779897041000,-159.57,0.00027814,30]
[423156851,1779897041000,-455.14,0.00027814,30]
[423156917,1779897042000,-320.0,0.00029,7]
[423156916,1779897042000,-172.67,0.00029,2]
[423156915,1779897042000,-150.0,0.00029,2]
[423156908,1779897042000,-172.67,0.00029,2]
[423156911,1779897042000,-200.0,0.00029,2]
[423156909,1779897042000,-200.0,0.00029,2]
[423156910,1779897042000,-200.0,0.00029,2]
[423156906,1779897042000,-217.65,0.00029,2]
[423156905,1779897042000,-209.17,0.00029,2]
[423156918,1779897042000,-200.0,0.00029,2]
[423156914,1779897042000,-245.05,0.00029,2]
[423156907,1779897042000,-217.66,0.00029,2]
[423156921,1779897042000,-1726.99194923,0.00029,2]
[423156929,1779897042000,-347.42708491,0.00029088,2]
[423156920,1779897042000,-484.25240497,0.00029,2]
[423156922,1779897042000,-1796.34838762,0.00029,2]
[423156923,1779897042000,-1310.27174999,0.00029,2]
[423156926,1779897042000,-9804.4,0.00029009,2]
[423156924,1779897042000,-2831.62,0.00029,7]
[423156925,1779897042000,-21371.53,0.00029009,2]
[423156928,1779897042000,-19999.99,0.00029009,2]
[423156927,1779897042000,-9999.99,0.00029009,2]
[423156930,1779897042000,-190.97,0.000291,7]
[423156932,1779897042000,-668.65185756,0.00029271,2]
[423156934,1779897042000,-484.25240497,0.000293,2]
[423156912,1779897042000,-200.0,0.00029,2]
[423156919,1779897042000,-201.0,0.00029,2]
[423156903,1779897042000,-150.0,0.00028897,2]
[423156892,1779897042000,-208.97895572,0.00028415,2]
[423156904,1779897042000,-167.16450667,0.00028971,2]
[423156877,1779897042000,-453.58,0.00028195,30]
[423156878,1779897042000,-159.52,0.00028195,30]
[423156879,1779897042000,-455.14,0.00028209,30]
[423156876,1779897042000,-384.03,0.00028182,30]
[423156889,1779897042000,-1796.34838762,0.000284,2]
[423156890,1779897042000,-1310.27174999,0.000284,2]
[423156880,1779897042000,-159.57,0.00028209,30]
[423156931,1779897042000,-200.38022994,0.000292,2]
[423156891,1779897042000,-215.46156935,0.00028415,2]
[423156882,1779897042000,-381.89,0.00028308,7]
[423156881,1779897042000,-466.2,0.00028267,2]
[423156887,1779897042000,-159.57,0.00028341,7]
[423156885,1779897042000,-159.52,0.00028329,7]
[423156884,1779897042000,-453.58,0.00028329,7]
[423156888,1779897042000,-484.25240497,0.000284,2]
[423156886,1779897042000,-455.14,0.00028341,7]
[423156883,1779897042000,-384.03,0.00028318,7]
[423156893,1779897042000,-177.46,0.00028422,120]
[423156896,1779897042000,-5947.24,0.000287,14]
[423156894,1779897042000,-160.0,0.00028519,2]
[423156897,1779897042000,-484.25240497,0.000287,2]
[423156895,1779897042000,-234.57,0.00028658,120]
[423156899,1779897042000,-1310.27174999,0.000287,2]
[423156901,1779897042000,-160.0,0.000288,10]
[423156900,1779897042000,-1532.0,0.00028741,2]
[423156898,1779897042000,-1796.34838762,0.000287,2]
[423156902,1779897042000,-200.0,0.0002883,30]
[423156913,1779897042000,-200.0,0.00029,2]
[423156933,1779897042000,-1377.42282659,0.00029271,2]
[423156939,1779897042000,-745.65223615,0.00029436,2]
[423156936,1779897042000,-1310.27174999,0.000293,2]
[423156966,1779897042000,-3016.09,0.00029815,2]
[423156973,1779897042000,-9999.99,0.00029815,2]
[423156967,1779897042000,-9999.99,0.00029815,2]
[423156968,1779897042000,-353.36,0.00029815,2]
[423156964,1779897042000,-9999.99,0.00029815,2]
[423156985,1779897042000,-24999.99,0.00029815,2]
[423156975,1779897042000,-1580.23,0.00029815,2]
[423156987,1779897042000,-7653.62,0.00029815,90]
[423156986,1779897042000,-14184.25,0.00029815,2]
[423156978,1779897042000,-2132.43,0.00029815,2]
[423156979,1779897042000,-9999.99,0.00029815,2]
[423156935,1779897042000,-1796.34838762,0.000293,2]
[423156965,1779897042000,-499.99,0.00029815,2]
[423156977,1779897042000,-4115.18,0.00029815,5]
[423156983,1779897042000,-5601.76,0.00029815,2]
[423156984,1779897042000,-176.64,0.00029815,2]
[423156981,1779897042000,-212.38,0.00029815,2]
[423156976,1779897042000,-73881.12,0.00029815,2]
[423156988,1779897042000,-299.99,0.00029815,12]
[423156990,1779897042000,-168.33516456,0.00029899,5]
[423156989,1779897042000,-152.92585677,0.00029844,7]
[423156992,1779897042000,-150.91644121,0.00029899,7]
[423156994,1779897042000,-5947.24,0.000299,14]
[423156993,1779897042000,-213.19844537,0.00029899,2]
[423156995,1779897042000,-200.0,0.0003,2]
[423156996,1779897042000,-200.0,0.0003,2]
[423156974,1779897042000,-1102.76,0.00029815,2]
[423156963,1779897042000,-18232.27,0.00029815,20]
[423156980,1779897042000,-134522.98,0.00029815,10]
[423156971,1779897042000,-3746.13,0.00029815,2]
[423156972,1779897042000,-4999.99,0.00029815,2]
[423156938,1779897042000,-719.04747942,0.00029381,2]
[423156937,1779897042000,-693.39197629,0.00029326,2]
[423156945,1779897042000,-1452.0,0.00029632,2]
[423156944,1779897042000,-1310.27174999,0.000296,2]
[423156946,1779897042000,-1000.0,0.000297,7]
[423156940,1779897042000,-588.87858603,0.00029491,2]
[423156948,1779897042000,-159.0,0.00029773,30]
[423156941,1779897042000,-276.33739122,0.000295,2]
[423156942,1779897042000,-484.25240497,0.000296,2]
[423156947,1779897042000,-230.0,0.00029767,30]
[423156949,1779897042000,-415.24,0.000298,7]
[423156951,1779897042000,-157.0,0.00029801,30]
[423156943,1779897042000,-1796.34838762,0.000296,2]
[423156950,1779897042000,-159.0,0.00029801,30]
[423156952,1779897042000,-161.0,0.00029802,30]
[423156969,1779897042000,-150.99,0.00029815,2]
[423156962,1779897042000,-9999.99,0.00029815,2]
[423156961,1779897042000,-999.99,0.00029815,2]
[423156958,1779897042000,-186.0,0.00029802,30]
[423156957,1779897042000,-276.0,0.00029802,30]
[423156970,1779897042000,-1197.04,0.00029815,2]
[423156959,1779897042000,-195.0,0.00029802,30]
[423156956,1779897042000,-156.0,0.00029802,30]
[423156955,1779897042000,-155.0,0.00029802,30]
[423156954,1779897042000,-279.0,0.00029802,30]
[423156953,1779897042000,-158.0,0.00029802,30]
[423156960,1779897042000,-852.0,0.00029802,30]
[423157046,1779897043000,-160.0,0.00031,30]
[423157045,1779897043000,-5947.24,0.00031,14]
[423157043,1779897043000,-247.49,0.00030862,7]
[423157042,1779897043000,-852.0,0.00030802,30]
[423157037,1779897043000,-155.0,0.00030802,30]
[423157039,1779897043000,-276.0,0.00030802,30]
[423157040,1779897043000,-186.0,0.00030802,30]
[423157038,1779897043000,-156.0,0.00030802,30]
[423157036,1779897043000,-279.0,0.00030802,30]
[423157035,1779897043000,-158.0,0.00030802,30]
[423157044,1779897043000,-23325.06390724,0.00030933,2]
[423157041,1779897043000,-195.0,0.00030802,30]
[423157047,1779897043000,-1880.5242449,0.00031039,2]
[423157069,1779897043000,-160.0,0.00031801,30]
[423157056,1779897043000,-236.60698335,0.00031384,7]
[423157033,1779897043000,-157.0,0.00030801,30]
[423157058,1779897043000,-213.13909119,0.00031384,7]
[423157051,1779897043000,-330.0,0.00031254,19]
[423157053,1779897043000,-227.07116316,0.00031327,7]
[423157050,1779897043000,-1000.0,0.00031205,2]
[423157049,1779897043000,-245.42,0.00031096,2]
[423157054,1779897043000,-458.77757031,0.00031327,7]
[423157055,1779897043000,-484.16206517,0.00031384,5]
[423157052,1779897043000,-184.8778881,0.00031315,2]
[423157064,1779897043000,-1426.0,0.00031562,2]
[423157065,1779897043000,-5531.0,0.000316,5]
[423157048,1779897043000,-200.0,0.00031096,2]
[423157034,1779897043000,-164.0,0.00030802,30]
[423157057,1779897043000,-233.43335116,0.00031384,7]
[423157031,1779897043000,-1375.0,0.000308,3]
[423157066,1779897043000,-230.0,0.00031767,30]
[423156997,1779897043000,-200.0,0.0003,2]
[423156998,1779897043000,-169.36,0.00030082,120]
[423156999,1779897043000,-228.9,0.00030137,31]
[423157003,1779897043000,-200.0,0.00030137,2]
[423157001,1779897043000,-281.31,0.00030137,2]
[423157005,1779897043000,-200.0,0.00030137,40]
[423157007,1779897043000,-466.2,0.00030239,2]
[423157019,1779897043000,-500.0,0.00030729,120]
[423157020,1779897043000,-305.85171354,0.00030733,7]
[423157009,1779897043000,-150.0,0.00030341,2]
[423157013,1779897043000,-152.0,0.00030586,7]
[423157012,1779897043000,-152.0,0.00030586,7]
[423157032,1779897043000,-159.0,0.00030801,30]
[423157018,1779897043000,-500.0,0.00030729,120]
[423157010,1779897043000,-150.0,0.00030349,22]
[423157014,1779897043000,-152.0,0.00030647,7]
[423157016,1779897043000,-396.0096558,0.00030729,120]
[423157015,1779897043000,-1635.0,0.00030651,2]
[423157025,1779897043000,-152.0,0.00030773,7]
[423157024,1779897043000,-159.0,0.00030773,30]
[423157022,1779897043000,-2831.62,0.00030759,7]
[423157026,1779897043000,-242.08103259,0.0003079,5]
[423157023,1779897043000,-230.0,0.00030767,30]
[423157028,1779897043000,-336.67032911,0.0003079,5]
[423157029,1779897043000,-301.83288242,0.0003079,7]
[423157027,1779897043000,-171.75759006,0.0003079,2]
[423157030,1779897043000,-426.39689075,0.0003079,2]
[423157021,1779897043000,-152.0,0.00030735,7]
[423157068,1779897043000,-159.0,0.00031801,30]
[423157071,1779897043000,-279.0,0.00031802,30]
[423157070,1779897043000,-158.0,0.00031802,30]
[423157103,1779897043000,-177.15756749,0.00032,120]
[423157106,1779897043000,-1312.0,0.00032132,2]
[423157102,1779897043000,-223.4879805,0.00032,120]
[423157098,1779897043000,-179.82120625,0.00032,120]
[423157104,1779897043000,-204.70115116,0.00032,120]
[423157100,1779897043000,-188.97933496,0.00032,120]
[423157099,1779897043000,-213.22249227,0.00032,120]
[423157105,1779897043000,-200.0,0.00032055,2]
[423157107,1779897043000,-466.2,0.0003221,5]
[423157109,1779897043000,-297.0,0.00032293,10]
[423157101,1779897043000,-174.91040486,0.00032,120]
[423157108,1779897043000,-298.0,0.00032293,10]
[423157111,1779897043000,-5947.24,0.000323,14]
[423157112,1779897043000,-180.0,0.00032396,9]
[423157110,1779897043000,-288.0,0.00032293,10]
[423157120,1779897043000,-279.0,0.00032802,30]
[423157113,1779897043000,-4900.41,0.00032428,32]
[423157115,1779897043000,-2831.62,0.00032552,14]
[423157114,1779897043000,-299.304,0.00032428,32]
[423157118,1779897043000,-159.0,0.00032801,30]
[423157116,1779897043000,-230.0,0.00032767,30]
[423157117,1779897043000,-159.0,0.00032773,30]
[423157119,1779897043000,-158.0,0.00032802,30]
[423157121,1779897043000,-155.0,0.00032802,30]
[423157123,1779897043000,-276.0,0.00032802,30]
[423157122,1779897043000,-156.0,0.00032802,30]
[423157059,1779897043000,-155.207636,0.00031384,7]
[423157087,1779897043000,-200.6361202,0.00032,120]
[423157092,1779897043000,-184.93250208,0.00032,120]
[423157124,1779897043000,-186.0,0.00032802,30]
[423157095,1779897043000,-237.74569267,0.00032,120]
[423157125,1779897043000,-195.0,0.00032802,30]
[423157067,1779897043000,-159.0,0.00031773,30]
[423157062,1779897043000,-639.59533612,0.00031384,2]
[423157063,1779897043000,-190.97,0.000314,7]
[423157060,1779897043000,-505.00549367,0.00031384,5]
[423157061,1779897043000,-452.74932363,0.00031384,7]
[423157074,1779897043000,-276.0,0.00031802,30]
[423157075,1779897043000,-186.0,0.00031802,30]
[423157094,1779897043000,-174.11852651,0.00032,120]
[423157072,1779897043000,-155.0,0.00031802,30]
[423157077,1779897043000,-852.0,0.00031802,30]
[423157084,1779897043000,-178.17649556,0.00032,120]
[423157082,1779897043000,-228.59045342,0.00032,120]
[423157076,1779897043000,-195.0,0.00031802,30]
[423157073,1779897043000,-156.0,0.00031802,30]
[423157080,1779897043000,-188.88770217,0.00032,120]
[423157093,1779897043000,-172.85304604,0.00032,120]
[423157078,1779897043000,-150.0,0.00031858,2]
[423157085,1779897043000,-945.96681288,0.00032,120]
[423157096,1779897043000,-200.0,0.00032,120]
[423157089,1779897043000,-834.71067795,0.00032,120]
[423157090,1779897043000,-243.17539936,0.00032,120]
[423157088,1779897043000,-200.79846749,0.00032,120]
[423157091,1779897043000,-248.00977717,0.00032,120]
[423157097,1779897043000,-268.0,0.00032,120]
[423157079,1779897043000,-415.24,0.000319,7]
[423157081,1779897043000,-198.52157596,0.00032,120]
[423157083,1779897043000,-180.73259399,0.00032,120]
[423157086,1779897043000,-167.31995719,0.00032,120]
[423157164,1779897044000,-156.0,0.00033802,30]
[423157166,1779897044000,-186.0,0.00033802,30]
[423157170,1779897044000,-945.96681288,0.000339,120]
[423157165,1779897044000,-276.0,0.00033802,30]
[423157171,1779897044000,-200.79846749,0.000339,120]
[423157152,1779897044000,-150.0,0.00033451,2]
[423157172,1779897044000,-834.71067795,0.000339,120]
[423157161,1779897044000,-158.0,0.00033802,30]
[423157156,1779897044000,-159.0,0.00033773,30]
[423157154,1779897044000,-610.54260806,0.00033571,3]
[423157160,1779897044000,-159.0,0.00033801,30]
[423157168,1779897044000,-852.0,0.00033802,30]
[423157179,1779897044000,-278.0,0.00034082,2]
[423157163,1779897044000,-155.0,0.00033802,30]
[423157167,1779897044000,-195.0,0.00033802,30]
[423157169,1779897044000,-247.49,0.00033817,30]
[423157173,1779897044000,-243.17539936,0.000339,120]
[423157175,1779897044000,-184.93250208,0.000339,120]
[423157178,1779897044000,-360.19,0.00033973,5]
[423157176,1779897044000,-172.85304604,0.000339,120]
[423157182,1779897044000,-167.16450667,0.00034186,2]
[423157180,1779897044000,-272.87,0.00034124,30]
[423157177,1779897044000,-174.11852651,0.000339,120]
[423157181,1779897044000,-466.2,0.00034182,7]
[423157184,1779897044000,-200.0,0.00034247,90]
[423157151,1779897044000,-1500.0,0.000334,7]
[423157162,1779897044000,-279.0,0.00033802,30]
[423157153,1779897044000,-152.0,0.00033501,3]
[423157137,1779897044000,-834.71067795,0.00033,120]
[423157150,1779897044000,-190.97,0.000334,30]
[423157174,1779897044000,-248.00977717,0.000339,120]
[423157126,1779897044000,-852.0,0.00032802,30]
[423157130,1779897044000,-150.0,0.00032877,2]
[423157128,1779897044000,-1940.36,0.00032877,30]
[423157127,1779897044000,-281.31,0.00032877,2]
[423157129,1779897044000,-840.0,0.00032877,30]
[423157133,1779897044000,-180.73259399,0.00033,120]
[423157132,1779897044000,-188.88770217,0.00033,120]
[423157131,1779897044000,-228.9,0.00032877,120]
[423157134,1779897044000,-945.96681288,0.00033,120]
[423157143,1779897044000,-174.91040486,0.00033,120]
[423157144,1779897044000,-160.0,0.00033,120]
[423157145,1779897044000,-350.0,0.00033014,5]
[423157136,1779897044000,-200.79846749,0.00033,120]
[423157146,1779897044000,-1036.0,0.0003321,2]
[423157140,1779897044000,-184.93250208,0.00033,120]
[423157142,1779897044000,-174.11852651,0.00033,120]
[423157141,1779897044000,-172.85304604,0.00033,120]
[423157135,1779897044000,-200.6361202,0.00033,120]
[423157139,1779897044000,-248.00977717,0.00033,120]
[423157138,1779897044000,-243.17539936,0.00033,120]
[423157147,1779897044000,-471.2104,0.00033258,120]
[423157149,1779897044000,-2000.0,0.00033333,7]
[423157148,1779897044000,-2743.0,0.00033282,2]
[423157158,1779897044000,-151.0,0.00033797,14]
[423157159,1779897044000,-5947.24,0.000338,14]
[423157157,1779897044000,-228.53078202,0.00033781,7]
[423157155,1779897044000,-230.0,0.00033767,30]
[423157185,1779897044000,-200.0,0.00034247,90]
[423157183,1779897044000,-200.0,0.00034247,90]
[423157187,1779897044000,-200.0,0.00034247,90]
[423157217,1779897044000,-492.0,0.00034452,60]
[423157218,1779897044000,-492.0,0.00034452,60]
[423157216,1779897044000,-150.0,0.00034452,60]
[423157213,1779897044000,-492.0,0.00034452,60]
[423157220,1779897044000,-289.47724845,0.00034452,60]
[423157221,1779897044000,-492.0,0.00034452,60]
[423157222,1779897044000,-150.0,0.00034452,60]
[423157219,1779897044000,-150.0,0.00034452,60]
[423157223,1779897044000,-150.0,0.00034452,60]
[423157228,1779897044000,-492.0,0.00034452,60]
[423157229,1779897044000,-492.0,0.00034452,60]
[423157227,1779897044000,-492.0,0.00034452,60]
[423157232,1779897044000,-492.0,0.00034452,60]
[423157234,1779897044000,-500.0,0.00034452,60]
[423157233,1779897044000,-511.7163428,0.00034452,60]
[423157236,1779897044000,-500.0,0.00034452,60]
[423157231,1779897044000,-492.0,0.00034452,60]
[423157235,1779897044000,-500.0,0.00034452,60]
[423157237,1779897044000,-150.0,0.00034452,60]
[423157239,1779897044000,-150.0,0.00034452,60]
[423157238,1779897044000,-622.5845227,0.00034452,60]
[423157241,1779897044000,-150.0,0.00034452,60]
[423157242,1779897044000,-150.0,0.00034452,60]
[423157240,1779897044000,-218.39893225,0.00034452,60]
[423157244,1779897044000,-164.66146701,0.00034452,60]
[423157245,1779897044000,-500.0,0.00034452,60]
[423157243,1779897044000,-500.0,0.00034452,60]
[423157215,1779897044000,-492.0,0.00034452,60]
[423157226,1779897044000,-492.0,0.00034452,60]
[423157230,1779897044000,-492.0,0.00034452,60]
[423157224,1779897044000,-189.78723983,0.00034452,60]
[423157197,1779897044000,-249.93242,0.00034247,90]
[423157225,1779897044000,-492.0,0.00034452,60]
[423157186,1779897044000,-200.0,0.00034247,90]
[423157199,1779897044000,-415.24,0.000343,7]
[423157198,1779897044000,-2000.0,0.00034247,30]
[423157191,1779897044000,-200.0,0.00034247,90]
[423157190,1779897044000,-200.0,0.00034247,90]
[423157194,1779897044000,-200.0,0.00034247,90]
[423157192,1779897044000,-200.0,0.00034247,90]
[423157188,1779897044000,-200.0,0.00034247,90]
[423157193,1779897044000,-200.0,0.00034247,90]
[423157196,1779897044000,-200.0,0.00034247,90]
[423157195,1779897044000,-200.0,0.00034247,90]
[423157201,1779897044000,-2831.62,0.00034345,30]
[423157189,1779897044000,-200.0,0.00034247,90]
[423157212,1779897044000,-492.0,0.00034452,60]
[423157214,1779897044000,-492.0,0.00034452,60]
[423157202,1779897044000,-330.0,0.00034363,36]
[423157211,1779897044000,-492.0,0.00034452,60]
[423157205,1779897044000,-492.0,0.00034452,60]
[423157209,1779897044000,-492.0,0.00034452,60]
[423157204,1779897044000,-492.0,0.00034452,60]
[423157207,1779897044000,-492.0,0.00034452,60]
[423157206,1779897044000,-492.0,0.00034452,60]
[423157210,1779897044000,-492.0,0.00034452,60]
[423157203,1779897044000,-23325.06390724,0.00034366,2]
[423157200,1779897044000,-350.0,0.00034317,15]
[423157208,1779897044000,-492.0,0.00034452,60]
[423157288,1779897045000,-150.0,0.00034452,60]
[423157285,1779897045000,-500.0,0.00034452,60]
[423157283,1779897045000,-500.0,0.00034452,60]
[423157287,1779897045000,-500.0,0.00034452,60]
[423157284,1779897045000,-150.0,0.00034452,60]
[423157278,1779897045000,-500.0,0.00034452,60]
[423157282,1779897045000,-500.0,0.00034452,60]
[423157289,1779897045000,-500.0,0.00034452,60]
[423157290,1779897045000,-157.41168338,0.00034452,60]
[423157281,1779897045000,-150.0,0.00034452,60]
[423157286,1779897045000,-500.0,0.00034452,60]
[423157280,1779897045000,-500.0,0.00034452,60]
[423157293,1779897045000,-439.48495491,0.00034452,60]
[423157315,1779897045000,-500.0,0.00034452,60]
[423157292,1779897045000,-500.0,0.00034452,60]
[423157297,1779897045000,-500.0,0.00034452,60]
[423157303,1779897045000,-500.0,0.00034452,60]
[423157291,1779897045000,-500.0,0.00034452,60]
[423157295,1779897045000,-150.0,0.00034452,60]
[423157296,1779897045000,-184.48877466,0.00034452,60]
[423157299,1779897045000,-500.0,0.00034452,60]
[423157300,1779897045000,-402.89210719,0.00034452,60]
[423157301,1779897045000,-267.88170662,0.00034452,60]
[423157298,1779897045000,-500.0,0.00034452,60]
[423157302,1779897045000,-500.0,0.00034452,60]
[423157305,1779897045000,-500.0,0.00034452,60]
[423157279,1779897045000,-500.0,0.00034452,60]
[423157294,1779897045000,-150.0,0.00034452,60]
[423157276,1779897045000,-500.0,0.00034452,60]
[423157251,1779897045000,-500.0,0.00034452,60]
[423157273,1779897045000,-172.95795463,0.00034452,60]
[423157252,1779897045000,-500.0,0.00034452,60]
[423157304,1779897045000,-500.0,0.00034452,60]
[423157253,1779897045000,-500.0,0.00034452,60]
[423157248,1779897045000,-500.0,0.00034452,60]
[423157250,1779897045000,-150.0,0.00034452,60]
[423157246,1779897045000,-150.0,0.00034452,60]
[423157249,1779897045000,-171.50846167,0.00034452,60]
[423157247,1779897045000,-150.0,0.00034452,60]
[423157262,1779897045000,-500.0,0.00034452,60]
[423157263,1779897045000,-500.0,0.00034452,60]
[423157264,1779897045000,-500.0,0.00034452,60]
[423157255,1779897045000,-500.0,0.00034452,60]
[423157259,1779897045000,-500.0,0.00034452,60]
[423157274,1779897045000,-500.0,0.00034452,60]
[423157257,1779897045000,-500.0,0.00034452,60]
[423157265,1779897045000,-500.0,0.00034452,60]
[423157256,1779897045000,-500.0,0.00034452,60]
[423157260,1779897045000,-500.0,0.00034452,60]
[423157258,1779897045000,-267.19449444,0.00034452,60]
[423157266,1779897045000,-500.0,0.00034452,60]
[423157267,1779897045000,-500.0,0.00034452,60]
[423157268,1779897045000,-500.0,0.00034452,60]
[423157270,1779897045000,-500.0,0.00034452,60]
[423157269,1779897045000,-500.0,0.00034452,60]
[423157271,1779897045000,-500.0,0.00034452,60]
[423157272,1779897045000,-500.0,0.00034452,60]
[423157277,1779897045000,-500.0,0.00034452,60]
[423157275,1779897045000,-500.0,0.00034452,60]
[423157254,1779897045000,-180.65416299,0.00034452,60]
[423157316,1779897045000,-500.0,0.00034452,60]
[423157261,1779897045000,-500.0,0.00034452,60]
[423157306,1779897045000,-500.0,0.00034452,60]
[423157339,1779897045000,-500.0,0.00034452,60]
[423157340,1779897045000,-500.0,0.00034452,60]
[423157346,1779897045000,-500.0,0.00034452,60]
[423157348,1779897045000,-500.0,0.00034452,60]
[423157347,1779897045000,-500.0,0.00034452,60]
[423157350,1779897045000,-500.0,0.00034452,60]
[423157351,1779897045000,-500.0,0.00034452,60]
[423157349,1779897045000,-500.0,0.00034452,60]
[423157353,1779897045000,-605.08657831,0.00034452,60]
[423157359,1779897045000,-401.16619608,0.00034452,60]
[423157356,1779897045000,-500.0,0.00034452,60]
[423157355,1779897045000,-500.0,0.00034452,60]
[423157357,1779897045000,-500.0,0.00034452,60]
[423157341,1779897045000,-150.0,0.00034452,2]
[423157358,1779897045000,-500.0,0.00034452,60]
[423157371,1779897045000,-500.0,0.00034452,60]
[423157364,1779897045000,-489.0,0.00034452,60]
[423157360,1779897045000,-500.0,0.00034452,60]
[423157363,1779897045000,-500.0,0.00034452,60]
[423157362,1779897045000,-500.0,0.00034452,120]
[423157365,1779897045000,-500.0,0.00034452,120]
[423157369,1779897045000,-500.0,0.00034452,120]
[423157368,1779897045000,-500.0,0.00034452,60]
[423157366,1779897045000,-500.0,0.00034452,60]
[423157367,1779897045000,-489.0,0.00034452,60]
[423157370,1779897045000,-489.0,0.00034452,60]
[423157372,1779897045000,-489.0,0.00034452,60]
[423157317,1779897045000,-500.0,0.00034452,60]
[423157361,1779897045000,-489.0,0.00034452,60]
[423157342,1779897045000,-381.68311281,0.00034452,60]
[423157373,1779897045000,-489.0,0.00034452,60]
[423157336,1779897045000,-500.0,0.00034452,60]
[423157307,1779897045000,-500.0,0.00034452,60]
[423157318,1779897045000,-500.0,0.00034452,60]
[423157310,1779897045000,-478.92004117,0.00034452,60]
[423157308,1779897045000,-500.0,0.00034452,60]
[423157309,1779897045000,-500.0,0.00034452,60]
[423157313,1779897045000,-500.0,0.00034452,60]
[423157314,1779897045000,-500.0,0.00034452,60]
[423157312,1779897045000,-500.0,0.00034452,60]
[423157344,1779897045000,-500.0,0.00034452,60]
[423157321,1779897045000,-500.0,0.00034452,60]
[423157322,1779897045000,-500.0,0.00034452,60]
[423157330,1779897045000,-500.0,0.00034452,60]
[423157325,1779897045000,-500.0,0.00034452,60]
[423157320,1779897045000,-500.0,0.00034452,60]
[423157319,1779897045000,-500.0,0.00034452,60]
[423157331,1779897045000,-500.0,0.00034452,60]
[423157326,1779897045000,-500.0,0.00034452,60]
[423157335,1779897045000,-500.0,0.00034452,60]
[423157345,1779897045000,-500.0,0.00034452,60]
[423157337,1779897045000,-585.82824268,0.00034452,60]
[423157343,1779897045000,-500.0,0.00034452,60]
[423157333,1779897045000,-500.0,0.00034452,60]
[423157338,1779897045000,-500.0,0.00034452,60]
[423157332,1779897045000,-500.0,0.00034452,60]
[423157329,1779897045000,-500.0,0.00034452,60]
[423157327,1779897045000,-500.0,0.00034452,60]
[423157328,1779897045000,-500.0,0.00034452,60]
[423157324,1779897045000,-500.0,0.00034452,60]
[423157323,1779897045000,-500.0,0.00034452,60]
[423157334,1779897045000,-500.0,0.00034452,60]
[423157414,1779897046000,-563.0,0.00034452,60]
[423157424,1779897046000,-500.0,0.00034452,60]
[423157423,1779897046000,-500.0,0.00034452,60]
[423157415,1779897046000,-1328.0,0.00034452,60]
[423157413,1779897046000,-1328.0,0.00034452,60]
[423157402,1779897046000,-489.0,0.00034452,60]
[423157406,1779897046000,-1328.0,0.00034452,60]
[423157401,1779897046000,-489.0,0.00034452,60]